bitfinex/quotes_BTCUSD_20250620
["timestamp","ask_amount","ask_price","bid_price","bid_amount"]
[1750461223209,0.83092318,103230.0,103220.0,0.29283874]
[1750461223708,0.83092321,103230.0,103220.0,0.29283874]
[1750461224234,0.83092312,103230.0,103220.0,0.29283874]
[1750461224731,0.84060966,103230.0,103220.0,0.29283874]
[1750461225541,0.83092312,103230.0,103220.0,0.29283874]
[1750461225745,0.84060956,103230.0,103220.0,0.29283874]
[1750461225951,0.49959255,103230.0,103220.0,0.29283874]
[1750461226152,0.84060956,103230.0,103220.0,0.29283874]
[1750461226567,0.84060965,103230.0,103220.0,0.29283874]
[1750461228101,0.85029628,103230.0,103220.0,0.29283874]
[1750461228509,0.84060965,103230.0,103220.0,0.29283874]
[1750461229033,0.85029619,103230.0,103220.0,0.25408884]
[1750461229228,0.85998282,103230.0,103220.0,0.27346388]
[1750461229634,0.85091661,103230.0,103220.0,0.27346388]
[1750461229837,0.85998218,103230.0,103220.0,0.27346388]
[1750461230045,0.51896517,103230.0,103220.0,0.27346388]
[1750461230246,0.85998218,103230.0,103220.0,0.27346388]
[1750461231551,0.88908518,103230.0,103220.0,0.27346388]
[1750461232888,0.88908574,103230.0,103220.0,0.27346388]
[1750461234149,1.2204164,103230.0,103220.0,0.26377631]
[1750461234350,1.23010341,103230.0,103220.0,0.27232379]
[1750461235182,1.22103784,103230.0,103220.0,0.27232379]
[1750461235389,1.21135083,103230.0,103220.0,0.27232379]
[1750461236408,0.97775465,103230.0,103220.0,0.27232379]
[1750461236617,0.7730719,103230.0,103220.0,0.27232379]
[1750461236762,0.7730719,103230.0,103220.0,0.28201117]
[1750461236969,0.78275881,103230.0,103220.0,0.27232379]
[1750461238081,0.78275881,103230.0,103220.0,0.28201117]
[1750461238648,0.78275881,103230.0,103220.0,0.26263631]
[1750461238885,0.78275881,103230.0,103220.0,0.27232379]
[1750461239725,0.81363252,103230.0,103220.0,0.27232379]
[1750461240121,0.81363252,103230.0,103220.0,0.0001]
[1750461240122,1.07177986,103230.0,103220.0,0.0001]
[1750461240353,6.05689825,103230.0,103220.0,0.0001]
[1750461240565,6.04721143,103230.0,103220.0,0.0001]
[1750461240997,5.36517741,103230.0,103220.0,0.0001]
[1750461241205,6.04721143,103230.0,103220.0,0.0001]
[1750461241402,6.14248128,103230.0,103220.0,0.0001]
[1750461241827,6.83803914,103230.0,103220.0,0.0001]
[1750461242048,7.32623914,103230.0,103220.0,0.0001]
[1750461242389,7.35512771,103230.0,103220.0,0.0001]
[1750461243456,7.32623914,103230.0,103220.0,0.0011]
[1750461243668,7.33023914,103230.0,103220.0,0.0021]
[1750461244113,5.34476646,103210.0,103200.0,2.001e-05]
[1750461244377,6.40206786,103210.0,103200.0,2.001e-05]
[1750461244605,6.49855771,103210.0,103200.0,2.001e-05]
[1750461245594,6.49855771,103210.0,103200.0,0.00049121]
[1750461246745,6.49855771,103210.0,103200.0,0.00149121]
[1750461246746,6.49955771,103210.0,103200.0,0.00149121]
[1750461247002,6.50306435,103210.0,103200.0,0.00149121]
[1750461247242,6.5176052,103210.0,103200.0,0.00149121]
[1750461247483,7.0058052,103210.0,103200.0,0.00149121]
[1750461247710,7.03469377,103210.0,103200.0,0.00149121]
[1750461248830,7.08469377,103210.0,103200.0,0.00149121]
[1750461249473,6.09298768,103200.0,103190.0,0.0001]
[1750461249688,6.46768298,103200.0,103190.0,0.00024112]
[1750461250154,6.49657155,103200.0,103190.0,0.00024112]
[1750461250364,6.86431312,103200.0,103190.0,0.00024112]
[1750461250578,6.8890736,103200.0,103190.0,0.00024112]
[1750461250793,6.8890736,103200.0,103170.0,0.0001]
[1750461250794,6.08695761,103180.0,103170.0,0.0001]
[1750461251007,6.50911484,103180.0,103170.0,0.00014714]
[1750461251227,6.52365569,103180.0,103170.0,0.00014714]
[1750461252300,6.58251648,103180.0,103170.0,0.00014714]
[1750461252510,6.58651648,103180.0,103170.0,0.00014714]
[1750461252736,6.6377482,103180.0,103170.0,0.00014714]
[1750461253157,6.6877482,103180.0,103170.0,0.00014714]
[1750461253800,6.65573553,103180.0,103170.0,0.00014714]
[1750461254030,6.66498771,103180.0,103170.0,0.00014714]
[1750461254235,6.66863676,103180.0,103170.0,0.00014714]
[1750461254444,6.71863676,103180.0,103170.0,0.00014714]
[1750461254855,6.66863676,103180.0,103170.0,0.00014714]
[1750461255086,6.71863676,103180.0,103170.0,0.00014714]
[1750461255312,6.66740505,103180.0,103170.0,0.00014714]
[1750461255517,6.68538223,103180.0,103170.0,0.00014714]
[1750461256103,6.71185346,103180.0,103170.0,0.00014714]
[1750461256577,6.66185346,103180.0,103170.0,0.00014714]
[1750461256786,6.71185346,103180.0,103170.0,0.00014714]
[1750461256994,6.69387628,103180.0,103170.0,0.00014714]
[1750461257110,6.64387628,103180.0,103170.0,0.00014714]
[1750461257317,6.69387628,103180.0,103170.0,0.00014714]
[1750461257524,6.66498771,103180.0,103170.0,0.00014714]
[1750461258532,6.66740505,103180.0,103170.0,0.00014714]
[1750461263579,6.70589034,103180.0,103170.0,0.00014714]
[1750461266321,6.67700177,103180.0,103170.0,0.00014714]
[1750461266564,6.69496987,103180.0,103170.0,0.00014714]
[1750461267070,6.64496937,103180.0,103170.0,0.00014714]
[1750461267296,6.70260774,103180.0,103170.0,0.00014714]
[1750461267716,6.58314772,103180.0,103170.0,0.00014714]
[1750461267946,6.60253066,103180.0,103170.0,0.00014714]
[1750461268391,6.60927218,103180.0,103170.0,0.00014714]
[1750461269447,6.64775747,103180.0,103170.0,0.00014714]
[1750461269624,6.62304835,103180.0,103170.0,0.00014714]
[1750461269851,5.96523802,103180.0,103170.0,0.00014714]
[1750461270053,6.64777868,103180.0,103170.0,0.00014714]
[1750461270438,6.61901184,103180.0,103170.0,0.00014714]
[1750461270813,6.62800844,103180.0,103170.0,0.00014714]
[1750461272492,5.35455828,103160.0,103150.0,0.0001]
[1750461272700,6.07284584,103160.0,103150.0,0.0001]
[1750461273016,6.10168414,103160.0,103150.0,0.0251]
[1750461273224,6.10168414,103160.0,103150.0,0.0503]
[1750461273225,6.03554129,103160.0,103150.0,0.0503]
[1750461273602,6.03654129,103160.0,103150.0,0.0503]
[1750461274009,6.03654129,103160.0,103150.0,0.24540238]
[1750461274462,5.32842388,103160.0,103150.0,0.24540238]
[1750461274660,5.90701383,103160.0,103150.0,0.26479114]
[1750461274838,5.9167075,103160.0,103150.0,0.27448528]
[1750461275056,5.87817553,103160.0,103150.0,0.28417933]
[1750461275262,5.87817553,103160.0,103150.0,0.27448528]
[1750461275457,5.90701383,103160.0,103150.0,0.27448528]
[1750461275683,5.9167075,103160.0,103150.0,0.27448528]
[1750461275877,5.90701383,103160.0,103150.0,0.28417933]
[1750461276078,5.90701383,103160.0,103150.0,0.27448528]
[1750461276284,5.90701383,103160.0,103150.0,0.28417933]
[1750461276700,5.90701383,103160.0,103150.0,0.27448528]
[1750461276897,5.90701383,103160.0,103150.0,0.26479114]
[1750461277097,5.90701383,103160.0,103150.0,0.27448528]
[1750461277623,5.97429919,103160.0,103150.0,0.27448528]
[1750461277835,5.97429919,103160.0,103150.0,0.26479114]
[1750461278192,5.97429919,103160.0,103150.0,0.27448528]
[1750461278409,5.91666082,103160.0,103150.0,0.28417933]
[1750461278630,5.33565711,103160.0,103150.0,0.29387329]
[1750461278840,5.59016207,103160.0,103150.0,0.34387329]
[1750461279257,5.60270901,103160.0,103150.0,0.34387329]
[1750461279689,5.61240184,103160.0,103150.0,0.34387329]
[1750461279902,5.6510764,103160.0,103150.0,0.34387329]
[1750461280108,5.62209495,103160.0,103150.0,0.34387329]
[1750461280314,5.63178825,103160.0,103150.0,0.34387329]
[1750461280518,5.68942662,103160.0,103150.0,0.34387329]
[1750461280757,5.69622116,103160.0,103150.0,0.34387329]
[1750461281195,5.70464673,103160.0,103150.0,0.34387329]
[1750461281654,5.64700836,103160.0,103150.0,0.34387329]
[1750461282302,5.65670166,103160.0,103150.0,0.34387329]
[1750461282510,5.71434003,103160.0,103150.0,0.34387329]
[1750461282722,5.70464673,103160.0,103150.0,0.34387329]
[1750461283392,5.71434402,103160.0,103150.0,0.34387329]
[1750461283599,5.65670565,103160.0,103150.0,0.34387329]
[1750461283807,5.638584,103160.0,103150.0,0.34387329]
[1750461284421,5.64827749,103160.0,103150.0,0.34387329]
[1750461284622,5.65797107,103160.0,103150.0,0.34387329]
[1750461284866,5.65797191,103160.0,103150.0,0.34387329]
[1750461285083,5.65797191,103160.0,103150.0,0.33417933]
[1750461285935,5.83245909,103160.0,103150.0,0.3050969]
[1750461286140,5.83245909,103160.0,103150.0,0.31479123]
[1750461286546,5.89915789,103160.0,103150.0,0.32448547]
[1750461287200,5.89009743,103160.0,103150.0,0.32448547]
[1750461287366,5.83245906,103160.0,103150.0,0.32448547]
[1750461288785,5.83245906,103160.0,103150.0,0.33417961]
[1750461288991,5.6288918,103160.0,103150.0,0.34387357]
[1750461289672,5.62889142,103160.0,103150.0,0.34387357]
[1750461289772,5.65788841,103160.0,103150.0,0.34387357]
[1750461290020,5.65788784,103160.0,103150.0,0.34387357]
[1750461290259,5.66758123,103160.0,103150.0,0.34387357]
[1750461290518,5.65788794,103160.0,103150.0,0.34387357]
[1750461290758,5.67727445,103160.0,103150.0,0.34387357]
[1750461290991,5.67047873,103160.0,103150.0,0.34387357]
[1750461291472,5.63199344,103160.0,103150.0,0.34387357]
[1750461294793,5.64168702,103160.0,103150.0,0.34387366]
[1750461294992,5.64168702,103160.0,103150.0,0.3438731]
[1750461295421,5.64168777,103160.0,103150.0,0.33417914]
[1750461295633,5.82586834,103160.0,103150.0,0.29540238]
[1750461295839,5.82586834,103160.0,103150.0,0.24540238]
[1750461296016,5.82586834,103160.0,103150.0,0.24419238]
[1750461296227,5.81617504,103160.0,103150.0,0.26479114]
[1750461296463,5.78717805,103160.0,103150.0,0.26479114]
[1750461296667,5.79678797,103160.0,103150.0,0.0503]
[1750461296873,5.88237323,103160.0,103150.0,0.0503]
[1750461297081,5.88916843,103160.0,103150.0,0.0503]
[1750461297540,6.5546527,103160.0,103150.0,0.0001]
[1750461297749,6.6062927,103160.0,103150.0,0.0001]
[1750461297927,6.59949788,103160.0,103150.0,0.0001]
[1750461298180,6.62083336,103160.0,103150.0,0.0001]
[1750461298361,6.64847474,103160.0,103150.0,0.0001]
[1750461298555,6.64747474,103160.0,103150.0,0.0001]
[1750461298764,0.21330163,103140.0,103130.0,0.0501]
[1750461298994,5.81560767,103140.0,103130.0,0.05024135]
[1750461300255,5.97888767,103140.0,103130.0,0.25386783]
[1750461300471,5.97888767,103140.0,103130.0,0.26356423]
[1750461301230,5.60230604,103140.0,103130.0,0.2938624]
[1750461301469,0.34,103140.0,103130.0,0.5071424]
[1750461301704,0.341,103140.0,103130.0,0.5071424]
[1750461301935,0.342,103140.0,103130.0,0.5071424]
[1750461302392,0.342,103140.0,103130.0,0.60242133]
[1750461302611,0.002,103140.0,103130.0,0.60242133]
[1750461303763,0.34327033,103140.0,103130.0,0.60242133]
[1750461303971,0.34327033,103140.0,103130.0,0.3438624]
[1750461304226,0.34327033,103140.0,103130.0,0.5071424]
[1750461304491,0.34327033,103140.0,103130.0,0.5071024]
[1750461305907,0.68327033,103140.0,103130.0,0.2938624]
[1750461306122,0.68327033,103140.0,103130.0,0.5071024]
[1750461309776,0.68327033,103140.0,103130.0,0.3426524]
[1750461310004,1.03423537,103140.0,103130.0,0.5058924]
[1750461310238,1.03423537,103140.0,103130.0,0.5070524]
[1750461310453,1.03423546,103140.0,103130.0,0.5070524]
[1750461311099,1.03423546,103140.0,103130.0,0.4570524]
[1750461311311,1.02454066,103140.0,103130.0,0.5070524]
[1750461312382,0.68327033,103140.0,103130.0,0.5070524]
[1750461317306,1.02454066,103140.0,103130.0,0.5070524]
[1750461319228,0.68327033,103140.0,103130.0,0.5070524]
[1750461322729,1.02454066,103140.0,103130.0,0.5070524]
[1750461325564,1.04393027,103140.0,103130.0,0.5058924]
[1750461325779,1.04393027,103140.0,103130.0,0.4811924]
[1750461325992,1.14890419,103140.0,103130.0,0.2425525]
[1750461326210,1.16829454,103140.0,103130.0,0.2425525]
[1750461326423,1.1682952,103140.0,103130.0,0.24255259]
[1750461326661,1.1682952,103140.0,103130.0,0.24255194]
[1750461327082,1.1841203,103140.0,103130.0,0.21346386]
[1750461327289,1.1841203,103140.0,103130.0,0.22315988]
[1750461327290,1.16951585,103140.0,103130.0,0.22315988]
[1750461327505,1.16829585,103140.0,103130.0,0.22315988]
[1750461327961,1.15860086,103140.0,103130.0,0.21346386]
[1750461328167,1.15860086,103140.0,103130.0,0.20376774]
[1750461328377,1.15860086,103140.0,103130.0,0.22315997]
[1750461328585,1.15860077,103140.0,103130.0,0.2328559]
[1750461329772,1.15860077,103140.0,103130.0,0.22315997]
[1750461329773,1.16829632,103140.0,103130.0,0.22315997]
[1750461329978,1.16829632,103140.0,103130.0,0.2328559]
[1750461330540,1.15860077,103140.0,103130.0,0.2328559]
[1750461331188,1.18178093,103140.0,103130.0,0.2328559]
[1750461331610,1.18178093,103140.0,103130.0,0.24255174]
[1750461332030,1.17208547,103140.0,103130.0,0.24255174]
[1750461332255,0.47015389,103140.0,103130.0,0.24255174]
[1750461332479,1.11981959,103140.0,103130.0,0.26845174]
[1750461332688,1.11981959,103140.0,103130.0,0.29413174]
[1750461332900,1.12951439,103140.0,103130.0,0.29413174]
[1750461333116,1.1295143,103140.0,103130.0,0.29413174]
[1750461333532,0.68327033,103140.0,103130.0,0.29413174]
[1750461334176,1.02454066,103140.0,103130.0,0.29413174]
[1750461334585,0.68327033,103140.0,103130.0,0.29413174]
[1750461335594,1.02454066,103140.0,103130.0,0.29413174]
[1750461336467,1.03423537,103140.0,103130.0,0.29413174]
[1750461336676,1.067118,103140.0,103130.0,0.29295174]
[1750461337090,0.37488244,103140.0,103130.0,0.29295174]
[1750461337304,1.0574231,103140.0,103130.0,0.29295174]
[1750461337940,1.0671179,103140.0,103130.0,0.29295174]
[1750461338789,0.69223537,103140.0,103130.0,0.26845174]
[1750461341840,0.70066861,103140.0,103130.0,0.26845174]
[1750461343324,0.70066898,103140.0,103130.0,0.26845174]
[1750461343742,0.70066896,103140.0,103130.0,0.26845174]
[1750461343954,0.70066896,103140.0,103130.0,0.29383174]
[1750461346776,0.01812772,103140.0,103130.0,0.29383174]
[1750461347011,0.34127033,103140.0,103130.0,0.29383174]
[1750461347440,0.66101386,103150.0,103130.0,0.20494718]
[1750461347647,5.44549697,103150.0,103140.0,0.27517672]
[1750461347865,5.60861697,103150.0,103140.0,0.27517672]
[1750461348089,5.61831111,103150.0,103140.0,0.27517672]
[1750461348718,5.96158144,103150.0,103140.0,0.27517672]
[1750461349353,5.96258144,103150.0,103140.0,0.27517672]
[1750461349575,6.30258144,103150.0,103140.0,0.27517672]
[1750461349992,6.30158144,103150.0,103140.0,0.27517672]
[1750461350190,6.30258144,103150.0,103140.0,0.27517672]
[1750461350605,6.30058144,103150.0,103140.0,0.27517672]
[1750461350871,6.30258144,103150.0,103140.0,0.27617672]
[1750461353933,0.82088148,103150.0,103140.0,0.27617672]
[1750461354143,0.72560255,103150.0,103140.0,0.48925672]
[1750461354768,0.02620367,103150.0,103140.0,0.48925672]
[1750461354971,0.343,103150.0,103140.0,0.48925672]
[1750461356016,0.342,103150.0,103140.0,0.48925672]
[1750461356171,0.342,103150.0,103140.0,0.58553565]
[1750461356172,0.003,103150.0,103140.0,0.58553565]
[1750461356565,0.001,103150.0,103140.0,0.58453565]
[1750461356772,0.01254694,103160.0,103150.0,0.2762551]
[1750461357051,0.34,103160.0,103150.0,0.2762551]
[1750461357254,0.34,103160.0,103150.0,0.3262551]
[1750461357255,0.68127033,103160.0,103150.0,0.3262551]
[1750461357886,0.34,103160.0,103150.0,0.42153403]
[1750461358099,0.34127033,103170.0,103160.0,0.32623349]
[1750461358322,0.34127033,103180.0,103170.0,0.26650282]
[1750461358547,0.51273001,103190.0,103180.0,0.24951027]
[1750461358754,0.6408683,103190.0,103180.0,0.24951027]
[1750461358962,0.65055878,103190.0,103180.0,0.24951027]
[1750461359175,0.48751878,103190.0,103180.0,0.24951027]
[1750461359378,0.47006528,103190.0,103180.0,0.27619027]
[1750461359574,0.47020637,103190.0,103180.0,0.27619027]
[1750461359780,0.8144767,103190.0,103180.0,0.27619027]
[1750461359995,0.8194767,103190.0,103180.0,0.27719027]
[1750461360243,0.79630763,103190.0,103180.0,0.27719027]
[1750461360676,0.80599783,103190.0,103180.0,0.27719027]
[1750461361113,0.81568822,103190.0,103180.0,0.27719027]
[1750461361320,0.84479781,103190.0,103180.0,0.27719027]
[1750461361549,1.05799628,103190.0,103180.0,0.20452771]
[1750461361792,1.04830608,103190.0,103180.0,0.22391083]
[1750461362247,5.94374777,103190.0,103180.0,0.001]
[1750461362904,5.88250312,103190.0,103180.0,0.0106918]
[1750461363360,5.64727628,103190.0,103180.0,0.22391093]
[1750461363572,5.65696714,103190.0,103180.0,0.23360207]
[1750461363802,5.85078437,103190.0,103180.0,0.20452781]
[1750461364011,5.85078437,103190.0,103180.0,0.21421951]
[1750461364226,5.85078437,103190.0,103180.0,0.22391112]
[1750461364655,5.85078437,103190.0,103180.0,0.21421951]
[1750461364865,5.83140331,103190.0,103180.0,0.21421951]
[1750461365596,5.87281245,103190.0,103180.0,0.001]
[1750461365770,5.87281245,103190.0,103180.0,0.0106918]
[1750461366224,5.87281245,103190.0,103180.0,0.21421942]
[1750461366509,5.82171245,103190.0,103180.0,0.21421942]
[1750461366628,5.83022321,103190.0,103180.0,0.25970217]
[1750461367900,5.83022321,103190.0,103180.0,0.21421942]
[1750461368118,5.82053245,103190.0,103180.0,0.0106918]
[1750461368347,5.98349245,103190.0,103180.0,0.0106918]
[1750461369035,5.98349245,103190.0,103180.0,0.02038341]
[1750461369261,5.80905646,103190.0,103180.0,0.23360217]
[1750461369483,5.80905646,103190.0,103180.0,0.2678934]
[1750461370165,5.8090559,103190.0,103180.0,0.26789274]
[1750461370382,5.81874666,103190.0,103180.0,0.26789274]
[1750461371293,0.7010287,103190.0,103180.0,0.29439274]
[1750461371513,0.8639887,103190.0,103180.0,0.34552274]
[1750461371732,0.7010287,103190.0,103180.0,0.34552274]
[1750461372395,0.01975837,103190.0,103180.0,0.50844274]
[1750461372616,0.3610287,103190.0,103180.0,0.50844274]
[1750461372833,0.3610287,103190.0,103180.0,0.50744274]
[1750461372834,0.3530287,103190.0,103180.0,0.50744274]
[1750461373048,0.3580287,103190.0,103180.0,0.50844274]
[1750461373261,0.3610287,103190.0,103180.0,0.50844274]
[1750461373739,0.3560287,103190.0,103180.0,0.50744274]
[1750461373953,0.01475837,103190.0,103180.0,0.50744274]
[1750461374166,0.3560287,103190.0,103180.0,0.50744274]
[1750461374376,0.3580287,103190.0,103180.0,0.50944274]
[1750461374611,0.3550287,103190.0,103180.0,0.50944274]
[1750461374851,0.3560287,103190.0,103180.0,0.51144274]
[1750461375729,0.36571881,103190.0,103180.0,0.51144274]
[1750461375945,0.3560287,103190.0,103180.0,0.51144274]
[1750461381336,0.01475837,103190.0,103180.0,0.51144274]
[1750461381553,0.3560287,103190.0,103180.0,0.51144274]
[1750461385511,0.3560287,103190.0,103180.0,0.51136274]
[1750461386801,0.3560287,103190.0,103180.0,0.34852274]
[1750461387022,0.73261346,103190.0,103180.0,0.21721932]
[1750461387233,0.73261346,103190.0,103180.0,0.22691065]
[1750461387234,5.58733942,103190.0,103180.0,0.22691065]
[1750461387451,5.75017942,103190.0,103180.0,0.22691065]
[1750461387697,6.09017942,103190.0,103180.0,0.22691065]
[1750461387917,6.08048922,103190.0,103180.0,0.21721932]
[1750461388135,6.07948922,103190.0,103180.0,0.21321932]
[1750461388359,6.07749019,103190.0,103180.0,0.20352781]
[1750461388570,6.06879971,103190.0,103180.0,0.23360226]
[1750461388780,6.06979971,103190.0,103180.0,0.23460226]
[1750461389254,6.06979971,103190.0,103180.0,0.24429349]
[1750461389470,5.64188086,103190.0,103180.0,0.24429349]
[1750461389686,1.03249393,103190.0,103180.0,0.29489283]
[1750461389899,1.05187622,103190.0,103180.0,0.27029283]
[1750461390115,1.05187622,103190.0,103180.0,0.24429283]
[1750461390371,1.24569345,103190.0,103180.0,0.22491046]
[1750461390600,1.24687345,103190.0,103180.0,0.22491046]
[1750461390815,1.23718334,103190.0,103180.0,0.22491046]
[1750461392350,6.11319023,103190.0,103180.0,0.002]
[1750461392569,6.19277304,103190.0,103180.0,0.0116918]
[1750461392786,6.54082643,103190.0,103180.0,0.002]
[1750461393004,6.1995561,103190.0,103180.0,0.002]
[1750461393458,6.1995561,103190.0,103180.0,0.19583601]
[1750461393671,6.1995561,103190.0,103180.0,0.20552771]
[1750461394342,6.05488625,103190.0,103180.0,0.22491083]
[1750461394567,6.04810319,103190.0,103180.0,0.22491083]
[1750461394785,6.04688319,103190.0,103180.0,0.23460225]
[1750461395221,6.04688319,103190.0,103180.0,0.24429358]
[1750461395439,1.03432837,103190.0,103180.0,0.24429311]
[1750461395697,1.0324928,103190.0,103180.0,0.27109311]
[1750461396498,1.04218291,103190.0,103180.0,0.27109311]
[1750461396696,1.23600089,103190.0,103180.0,0.24429311]
[1750461396895,1.25527331,103190.0,103180.0,0.23460188]
[1750461397319,1.2263105,103190.0,103180.0,0.24429302]
[1750461398203,0.84058117,103190.0,103180.0,0.29549302]
[1750461398419,0.99563452,103190.0,103180.0,0.29666302]
[1750461398630,0.97625393,103190.0,103180.0,0.29666302]
[1750461398768,0.99563423,103190.0,103180.0,0.29666302]
[1750461399796,1.01501529,103190.0,103180.0,0.29666302]
[1750461400247,0.85221529,103190.0,103180.0,0.29666302]
[1750461400656,0.88133129,103190.0,103180.0,0.29666302]
[1750461401716,0.89102205,103190.0,103180.0,0.29666302]
[1750461401918,1.06545898,103190.0,103180.0,0.25171055]
[1750461402748,5.85706659,103190.0,103180.0,0.20552762]
[1750461402953,5.85706659,103190.0,103180.0,0.21521913]
[1750461403170,5.85706659,103190.0,103180.0,0.22491046]
[1750461403433,5.85706659,103190.0,103180.0,0.25141046]
[1750461403640,5.85706659,103190.0,103180.0,0.26110169]
[1750461403860,5.66324936,103190.0,103180.0,0.26110169]
[1750461404079,5.66324899,103190.0,103180.0,0.27079283]
[1750461404291,1.02475043,103190.0,103180.0,0.29636283]
[1750461404520,1.01506004,103190.0,103180.0,0.29636283]
[1750461405372,1.02475024,103190.0,103180.0,0.29636283]
[1750461406020,0.718175,103190.0,103180.0,0.34636283]
[1750461406214,0.6950287,103190.0,103180.0,0.34636283]
[1750461406999,0.70471871,103190.0,103180.0,0.34636283]
[1750461407462,0.6950287,103190.0,103180.0,0.34636283]
[1750461408347,0.6950287,103190.0,103180.0,0.50916283]
[1750461409447,0.35375837,103190.0,103180.0,0.50916283]
[1750461409710,0.6950287,103190.0,103180.0,0.50916283]
[1750461410354,0.3550287,103190.0,103180.0,0.50916283]
[1750461410587,0.6950287,103190.0,103180.0,0.50916283]
[1750461416900,0.6950287,103190.0,103180.0,0.60444176]
[1750461417134,0.35375837,103190.0,103180.0,0.60444176]
[1750461419289,0.6950287,103190.0,103180.0,0.60444176]
[1750461419924,0.35375837,103190.0,103180.0,0.60444176]
[1750461420129,0.00214109,103190.0,103180.0,0.60444176]
[1750461420502,0.00214109,103190.0,103180.0,0.61898261]
[1750461420706,0.00214109,103190.0,103180.0,0.96025294]
[1750461421342,0.00214109,103190.0,103180.0,0.95825294]
[1750461421343,0.00014109,103190.0,103180.0,0.95825294]
[1750461421670,0.00214109,103190.0,103180.0,0.62098261]
[1750461425513,0.00214109,103190.0,103180.0,0.96225294]
[1750461426415,0.00214109,103190.0,103180.0,0.62098261]
[1750461429693,0.00214109,103190.0,103180.0,0.96225294]
[1750461431002,0.00214109,103190.0,103180.0,0.99135694]
[1750461436851,0.00214109,103190.0,103180.0,0.96225294]
[1750461444792,0.00214109,103190.0,103180.0,0.62098261]
[1750461445002,0.00214109,103190.0,103180.0,0.96225294]
[1750461446098,0.00214109,103190.0,103180.0,0.45818261]
[1750461446276,0.00214109,103190.0,103180.0,0.66438261]
[1750461447840,0.34341142,103190.0,103180.0,0.59781176]
[1750461448123,0.34341142,103190.0,103180.0,0.54781176]
[1750461448566,0.36811142,103190.0,103180.0,0.59781176]
[1750461449007,0.34341142,103190.0,103180.0,0.55421176]
[1750461449229,0.00214109,103190.0,103180.0,0.55421176]
[1750461449842,0.00214109,103190.0,103180.0,0.39157176]
[1750461450053,0.00214109,103190.0,103180.0,0.55421176]
[1750461453441,0.00214109,103190.0,103180.0,0.55545176]
[1750461454059,0.34127033,103200.0,103190.0,0.21319754]
[1750461454262,0.34127033,103200.0,103190.0,0.26319754]
[1750461455192,0.3519594,103200.0,103190.0,0.21619754]
[1750461455420,0.36164866,103200.0,103190.0,0.38083754]
[1750461455663,0.70391899,103200.0,103190.0,0.43083754]
[1750461455883,1.06329817,103200.0,103190.0,0.26819754]
[1750461456111,6.22956544,103200.0,103190.0,0.005]
[1750461456333,6.30897048,103200.0,103190.0,0.005]
[1750461456543,6.19054446,103200.0,103190.0,0.005]
[1750461457018,0.40718406,103170.0,103160.0,0.28264698]
[1750461457240,1.08972472,103170.0,103160.0,0.28278807]
[1750461457451,1.08972463,103170.0,103160.0,0.28278807]
[1750461457663,0.73876222,103170.0,103160.0,0.28278807]
[1750461457875,0.72907033,103170.0,103160.0,0.28278807]
[1750461458518,0.73007033,103170.0,103160.0,0.28678807]
[1750461458727,0.73107033,103170.0,103160.0,0.28978807]
[1750461461062,0.73098187,103170.0,103160.0,0.28978807]
[1750461463267,0.34327033,103170.0,103160.0,0.28978807]
[1750461464074,0.002,103170.0,103160.0,0.34092807]
[1750461464309,0.002,103170.0,103160.0,0.436207]
[1750461464741,0.002,103170.0,103160.0,0.77747733]
[1750461465353,0.002,103170.0,103160.0,0.436207]
[1750461465570,0.002,103170.0,103160.0,0.45074785]
[1750461465779,0.002,103170.0,103160.0,0.79201818]
[1750461467841,0.002,103170.0,103160.0,0.45074785]
[1750461468263,0.10518405,103180.0,103170.0,0.22293188]
[1750461468484,0.41983157,103200.0,103190.0,0.22288867]
[1750461468485,0.75684175,103200.0,103190.0,0.22288867]
[1750461469766,1.11280265,103200.0,103190.0,0.22288867]
[1750461469974,1.11280265,103200.0,103190.0,0.22288886]
[1750461470393,1.29691183,103200.0,103190.0,0.22288886]
[1750461471928,1.29791183,103200.0,103190.0,0.22388886]
[1750461472148,1.28822248,103200.0,103190.0,0.21419847]
[1750461472360,1.27853284,103200.0,103190.0,0.21419847]
[1750461473178,1.27853284,103200.0,103190.0,0.23357915]
[1750461475240,1.27183284,103200.0,103190.0,0.23357915]
[1750461476383,1.07803402,103200.0,103190.0,0.23357915]
[1750461476589,1.05865466,103200.0,103190.0,0.24326935]
[1750461476790,1.07803328,103200.0,103190.0,0.26966935]
[1750461477042,0.73676295,103200.0,103190.0,0.26966935]
[1750461477227,1.07803328,103200.0,103190.0,0.26966935]
[1750461477830,0.036114,103200.0,103190.0,0.34416935]
[1750461477969,1.06829826,103200.0,103190.0,0.31966935]
[1750461478179,1.06829817,103200.0,103190.0,0.29326935]
[1750461478386,1.06829807,103200.0,103190.0,0.29326935]
[1750461478834,1.03922973,103200.0,103190.0,0.29326935]
[1750461479047,1.04891899,103200.0,103190.0,0.29326935]
[1750461479872,1.03922973,103200.0,103190.0,0.29326935]
[1750461480083,1.03922973,103200.0,103190.0,0.31966935]
[1750461480716,0.68827033,103200.0,103190.0,0.34416935]
[1750461480935,0.34827033,103200.0,103190.0,0.50800935]
[1750461481142,0.347,103200.0,103190.0,0.50800935]
[1750461481355,0.007,103200.0,103190.0,0.50800935]
[1750461486836,0.007,103200.0,103190.0,0.60328828]
[1750461487924,0.002,103200.0,103190.0,0.60328828]
[1750461488811,0.001,103200.0,103190.0,0.60228828]
[1750461489219,0.003,103200.0,103190.0,0.60628828]
[1750461494709,0.003,103200.0,103190.0,0.96209946]
[1750461502944,0.003,103200.0,103190.0,0.62082913]
[1750461503150,0.003,103200.0,103190.0,0.96209946]
[1750461504172,0.002,103200.0,103190.0,0.96209946]
[1750461505983,0.002,103200.0,103190.0,0.66418913]
[1750461507160,0.002,103200.0,103190.0,0.45822913]
[1750461507359,0.002,103200.0,103190.0,0.66418913]
[1750461511368,0.002,103200.0,103190.0,1.00545946]
[1750461511817,0.002,103200.0,103190.0,0.66418913]
[1750461512665,0.34327033,103200.0,103190.0,0.60484828]
[1750461513087,0.34327033,103200.0,103190.0,0.60602828]
[1750461513297,0.002,103200.0,103190.0,0.60602828]
[1750461514890,0.002,103200.0,103190.0,0.44362828]
[1750461515148,0.002,103200.0,103190.0,0.60602828]
[1750461516052,0.34327033,103200.0,103190.0,0.60602828]
[1750461517002,0.002,103200.0,103190.0,0.60602828]
[1750461517233,0.34327033,103200.0,103190.0,0.60602828]
[1750461517691,0.002,103200.0,103190.0,0.60602828]
[1750461522568,0.001,103200.0,103190.0,0.60402828]
[1750461523071,0.002,103200.0,103190.0,0.60602828]
[1750461523299,0.001,103200.0,103190.0,0.60402828]
[1750461523548,0.002,103200.0,103190.0,0.60502828]
[1750461524633,0.34327033,103200.0,103190.0,0.44144828]
[1750461524855,0.34327033,103200.0,103190.0,0.29526935]
[1750461525071,0.34327033,103200.0,103190.0,0.45762935]
[1750461527799,0.002,103200.0,103190.0,0.50922935]
[1750461528010,0.34327033,103200.0,103190.0,0.50922935]
[1750461528856,0.34327033,103200.0,103190.0,0.51040935]
[1750461529080,0.002,103200.0,103190.0,0.51040935]